fUSD/lending_fUSD_20260408
["ID","MTS","AMOUNT","RATE_DAILY","PERIOD"]
[420056920,1775638247830,-568.74,0.00015194,2]
[420056921,1775638247840,-568.82574047,0.00015194,2]
[420056922,1775638247849,-578.20924308,0.00015199,2]
[420056923,1775638247859,-181.08010149,0.00015199,2]
[420056924,1775638247869,-1235.18214925,0.00015199,2]
[420056925,1775638247879,-500.0,0.00015199,2]
[420056926,1775638247889,-623.58710448,0.00015199,2]
[420056927,1775638247899,-295.21379859,0.00015199,2]
[420056928,1775638247909,-200.0,0.00015199,2]
[420056929,1775638247919,-743.50770149,0.00015199,2]
[420056930,1775638247930,-151.0,0.00015199,2]
[420056931,1775638247940,-174.61919141,0.00015199,2]
[420056932,1775638247950,-170.0,0.00015199,2]
[420056933,1775638247959,-170.0,0.00015199,2]
[420056934,1775638247969,-170.0,0.00015199,2]
[420056935,1775638247978,-170.0,0.00015199,2]
[420056936,1775638247988,-170.0,0.00015199,2]
[420056937,1775638247997,-170.0,0.00015199,2]
[420056938,1775638248007,-170.0,0.00015199,2]
[420056939,1775638248016,-170.0,0.00015199,2]
[420056940,1775638248026,-170.0,0.00015199,2]
[420056941,1775638248036,-170.0,0.00015199,2]
[420056942,1775638248046,-170.0,0.00015199,2]
[420056943,1775638248056,-170.0,0.00015199,2]
[420056944,1775638248066,-170.0,0.00015199,2]
[420056945,1775638248076,-170.0,0.00015199,2]
[420056946,1775638248085,-170.0,0.00015199,2]
[420056947,1775638248095,-150.0,0.000152,2]
[420056948,1775638248105,-150.0,0.000152,2]
[420056949,1775638248115,-150.0,0.000152,2]
[420056950,1775638248126,-150.0,0.000152,2]
[420056951,1775638248135,-150.0,0.000152,2]
[420056952,1775638248145,-150.0,0.000152,2]
[420056953,1775638248155,-150.0,0.00015212,2]
[420056954,1775638248165,-150.0,0.00015219,2]
[420056955,1775638248175,-150.0,0.00015221,2]
[420056956,1775638248185,-31451.11543114,0.00015227,2]
[420056957,1775638248195,-150.0,0.00015228,2]
[420056958,1775638248206,-150.0,0.00015232,2]
[420056959,1775638248216,-150.0,0.00015236,2]
[420056960,1775638248226,-150.0,0.00015238,2]
[420056961,1775638248236,-150.0,0.00015238,2]
[420056962,1775638248246,-150.0,0.00015242,2]
[420056963,1775638248256,-500.0,0.00015254,2]
[420056964,1775638248266,-151.0,0.00015254,2]
[420056965,1775638248277,-150.0,0.00015255,2]
[420056966,1775638248287,-150.0,0.00015256,2]
[420056967,1775638248297,-507.0,0.00015258,3]
[420056968,1775638248307,-150.0,0.0001526,2]
[420056969,1775638248317,-150.0,0.00015262,2]
[420056970,1775638248327,-150.0,0.00015262,2]
[420056971,1775638248337,-150.0,0.00015264,2]
[420056972,1775638248347,-150.0,0.00015283,2]
[420056973,1775638248358,-150.0,0.00015284,2]
[420056974,1775638248368,-150.0,0.00015284,2]
[420056975,1775638248378,-150.0,0.00015293,2]
[420056976,1775638248389,-150.0,0.00015296,2]
[420056977,1775638248400,-830.65684136,0.000153,2]
[420056978,1775638248410,-150.0,0.00015303,2]
[420056979,1775638248420,-150.0,0.00015307,2]
[420056980,1775638248430,-500.0,0.00015309,2]
[420056981,1775638248440,-151.0,0.00015309,2]
[420056982,1775638248450,-150.0,0.0001531,2]
[420056983,1775638248461,-150.0,0.00015314,2]
[420056984,1775638248472,-150.0,0.00015314,2]
[420056985,1775638248482,-150.0,0.00015326,2]
[420056986,1775638248492,-150.0,0.00015328,2]
[420056987,1775638248503,-150.0,0.0001533,2]
[420056988,1775638248514,-150.0,0.00015331,2]
[420056989,1775638248524,-150.0,0.00015338,2]
[420056990,1775638248534,-987.75,0.00015342,2]
[420056991,1775638248544,-150.0,0.00015344,2]
[420056992,1775638248554,-150.0,0.00015355,2]
[420056993,1775638248564,-150.0,0.0001536,2]
[420056994,1775638248574,-500.0,0.00015364,2]
[420056995,1775638248584,-151.0,0.00015364,2]
[420056996,1775638248594,-150.0,0.00015366,2]
[420056997,1775638248604,-150.0,0.00015367,2]
[420056998,1775638248614,-150.0,0.00015368,2]
[420056999,1775638248625,-150.0,0.00015379,2]
[420057000,1775638248635,-150.0,0.00015385,2]
[420057001,1775638248645,-150.0,0.00015385,2]
[420057002,1775638248655,-150.0,0.0001539,2]
[420057003,1775638248665,-150.0,0.0001539,2]
[420057004,1775638248675,-150.0,0.00015392,2]
[420057005,1775638248685,-150.0,0.00015393,2]
[420057006,1775638248695,-150.0,0.00015403,2]
[420057007,1775638248705,-150.0,0.00015405,2]
[420057008,1775638248716,-150.0,0.00015411,2]
[420057009,1775638248725,-500.0,0.00015419,2]
[420057010,1775638248736,-151.0,0.00015419,2]
[420057011,1775638248745,-150.0,0.00015421,2]
[420057012,1775638248756,-150.0,0.00015424,2]
[420057013,1775638248766,-150.0,0.00015426,2]
[420057014,1775638248777,-150.0,0.00015427,2]
[420057015,1775638248786,-185.308068,0.00015438,7]
[420057016,1775638248796,-150.0,0.00015442,2]
[420057017,1775638248807,-150.0,0.00015448,2]
[420057018,1775638248816,-150.0,0.00015451,2]
[420057019,1775638248826,-150.0,0.00015453,2]
[420057020,1775638248837,-150.0,0.00015456,2]
[420057021,1775638248846,-150.0,0.00015467,2]
[420057022,1775638248856,-150.0,0.00015467,2]
[420057023,1775638248866,-150.0,0.00015467,2]
[420057024,1775638248876,-3034.76,0.00015471,2]
[420057025,1775638248886,-863.61,0.00015471,2]
[420057026,1775638248896,-1674.23,0.00015471,2]
[420057027,1775638248906,-500.0,0.00015474,2]
[420057028,1775638248916,-151.0,0.00015474,2]
[420057029,1775638248926,-150.0,0.00015475,2]
[420057030,1775638248936,-150.0,0.00015476,2]
[420057031,1775638248945,-150.0,0.00015479,2]
[420057032,1775638248956,-150.0,0.00015488,2]
[420057033,1775638248965,-150.0,0.00015495,2]
[420057034,1775638248976,-150.0,0.00015499,2]
[420057035,1775638248986,-150.0,0.00015503,2]
[420057036,1775638248997,-150.0,0.00015508,2]
[420057037,1775638249007,-150.0,0.00015508,2]
[420057038,1775638249017,-150.0,0.00015516,2]
[420057039,1775638249028,-150.0,0.0001552,2]
[420057040,1775638249038,-150.0,0.00015522,2]
[420057041,1775638249054,-500.0,0.00015529,2]
[420057042,1775638249064,-291.21499487,0.00015529,2]
[420057043,1775638249074,-150.0,0.00015531,2]
[420057044,1775638249084,-150.0,0.00015537,2]
[420057045,1775638249093,-150.0,0.00015543,2]
[420057046,1775638249103,-150.0,0.00015543,2]
[420057047,1775638249113,-150.0,0.00015546,2]
[420057048,1775638249122,-150.0,0.00015549,2]
[420057049,1775638249133,-150.0,0.00015552,2]
[420057050,1775638249143,-150.0,0.00015553,2]
[420057051,1775638249154,-150.0,0.00015559,2]
[420057052,1775638249164,-350.0,0.00015566,2]
[420057053,1775638249175,-150.0,0.0001557,2]
[420057054,1775638249325,-150.0,0.00015579,2]
[420057055,1775638249337,-150.0,0.00015584,2]
[420057056,1775638249347,-500.0,0.00015584,2]
[420057057,1775638249357,-150.0,0.00015586,2]
[420057058,1775638249368,-150.0,0.0001559,2]
[420057059,1775638249378,-150.0,0.00015591,2]
[420057060,1775638249388,-150.0,0.00015594,2]
[420057061,1775638249398,-257.38,0.00015595,2]
[420057062,1775638249408,-254.1999,0.000156,2]
[420057063,1775638249418,-150.0,0.000156,2]
[420057064,1775638249428,-150.0,0.00015614,2]
[420057065,1775638249438,-150.0,0.00015616,2]
[420057066,1775638249447,-350.0,0.00015618,2]
[420057067,1775638249457,-150.0,0.00015618,2]
[420057068,1775638249467,-150.0,0.00015619,2]
[420057069,1775638249477,-150.0,0.00015619,2]
[420057070,1775638249486,-150.0,0.00015621,2]
[420057071,1775638249496,-150.0,0.00015628,2]
[420057072,1775638249506,-150.0,0.00015631,2]
[420057073,1775638249515,-150.0,0.00015631,2]
[420057074,1775638249524,-500.0,0.00015639,2]
[420057075,1775638249534,-150.0,0.00015641,2]
[420057076,1775638249544,-150.0,0.00015642,2]
[420057077,1775638249555,-150.0,0.00015648,2]
[420057078,1775638249565,-160.0,0.00015654,2]
[420057079,1775638249574,-447.28942319,0.00015659,2]
[420057080,1775638249585,-150.0,0.00015663,2]
[420057081,1775638249595,-150.0,0.00015665,2]
[420057082,1775638249605,-150.0,0.00015666,2]
[420057083,1775638249614,-150.0,0.00015669,2]
[420057084,1775638249625,-150.0,0.00015672,2]
[420057085,1775638249635,-150.0,0.0001568,2]
[420057086,1775638249645,-150.0,0.0001569,2]
[420057087,1775638249655,-500.0,0.00015694,2]
[420057088,1775638249666,-150.0,0.00015695,2]
[420057089,1775638249676,-150.0,0.00015695,2]
[420057090,1775638249686,-150.0,0.00015697,2]
[420057091,1775638249696,-150.0,0.00015702,2]
[420057092,1775638249705,-150.0,0.00015705,2]
[420057093,1775638249716,-150.0,0.00015712,2]
[420057094,1775638249725,-150.0,0.00015713,2]
[420057095,1775638249735,-150.0,0.00015713,2]
[420057096,1775638249744,-150.0,0.00015724,2]
[420057097,1775638249753,-1000.0,0.00015734,2]
[420057098,1775638249763,-150.0,0.00015737,2]
[420057099,1775638249773,-150.0,0.0001574,2]
[420057100,1775638249782,-150.0,0.00015744,2]
[420057101,1775638249791,-1280.88388878,0.00015747,2]
[420057102,1775638249801,-187.78006525,0.00015747,2]
[420057103,1775638249811,-200.0,0.00015747,2]
[420057104,1775638249820,-771.01748645,0.00015747,2]
[420057105,1775638249830,-181.08010149,0.00015747,2]
[420057106,1775638249840,-150.0,0.00015747,2]
[420057107,1775638249849,-500.0,0.00015749,2]
[420057108,1775638249858,-1000.0,0.00015751,2]
[420057109,1775638249867,-150.0,0.00015752,2]
[420057110,1775638249877,-2885.74,0.00015753,2]
[420057111,1775638249886,-150.0,0.00015754,2]
[420057112,1775638249896,-150.0,0.00015754,2]
[420057113,1775638249905,-150.0,0.00015761,2]
[420057114,1775638249915,-150.0,0.0001577,2]
[420057115,1775638249924,-150.0,0.00015771,2]
[420057116,1775638249934,-150.0,0.00015771,2]
[420057117,1775638249943,-150.0,0.00015776,2]
[420057118,1775638249952,-150.0,0.00015777,2]
[420057119,1775638249961,-150.0,0.00015779,2]
[420057120,1775638249971,-150.0,0.00015785,2]
[420057121,1775638249980,-150.0,0.00015789,2]
[420057122,1775638249989,-150.0,0.00015795,2]
[420057123,1775638249999,-500.0,0.00015804,2]
[420057124,1775638250008,-150.0,0.00015807,2]
[420057125,1775638250019,-500.0,0.00015808,2]
[420057126,1775638250028,-500.0,0.00015808,2]
[420057127,1775638250037,-396.4808442,0.00015808,2]
[420057128,1775638250046,-150.0,0.00015808,2]
[420057129,1775638250056,-150.0,0.00015809,2]
[420057130,1775638250065,-150.0,0.00015814,2]
[420057131,1775638250075,-150.0,0.00015832,2]
[420057132,1775638250084,-150.0,0.00015833,2]
[420057133,1775638250094,-150.0,0.00015834,2]
[420057134,1775638250103,-350.0,0.00015835,2]
[420057135,1775638250112,-150.0,0.00015836,2]
[420057136,1775638250122,-150.0,0.0001584,2]
[420057137,1775638250132,-2000.0,0.0001584,2]
[420057138,1775638250141,-2000.0,0.0001584,2]
[420057139,1775638250151,-1000.0,0.00015842,2]
[420057140,1775638250161,-150.0,0.00015848,2]
[420057141,1775638250170,-150.0,0.00015848,2]
[420057142,1775638250179,-2000.0,0.0001585,2]
[420057143,1775638250188,-150.0,0.00015851,2]
[420057144,1775638250199,-150.0,0.00015857,2]
[420057145,1775638250208,-500.0,0.00015859,2]
[420057146,1775638250217,-163.8001,0.0001586,2]
[420057147,1775638250227,-150.0,0.00015862,2]
[420057148,1775638250236,-31451.11543114,0.00015868,2]
[420057149,1775638250246,-163.8001,0.0001587,2]
[420057150,1775638250256,-200.0,0.00015871,2]
[420057151,1775638250265,-500.0,0.00015872,2]
[420057152,1775638250276,-500.0,0.00015872,2]
[420057153,1775638250285,-200.0,0.00015872,2]
[420057154,1775638250295,-150.0,0.00015872,2]
[420057155,1775638250304,-150.0,0.00015874,2]
[420057156,1775638250314,-150.0,0.00015877,2]
[420057157,1775638250323,-150.0,0.00015877,2]
[420057158,1775638250333,-150.0,0.00015881,2]
[420057159,1775638250343,-150.0,0.00015888,2]
[420057160,1775638250352,-150.0,0.0001589,2]
[420057161,1775638250362,-500.0,0.0001589,2]
[420057162,1775638250371,-500.0,0.0001589,2]
[420057163,1775638250382,-500.0,0.0001589,2]
[420057164,1775638250392,-194.91667222,0.0001589,2]
[420057165,1775638250401,-25000.0,0.000159,3]
[420057166,1775638250411,-184.01842302,0.000159,2]
[420057167,1775638250420,-290.6382491,0.000159,2]
[420057168,1775638250430,-1516.0,0.000159,5]
[420057169,1775638250440,-1209.0,0.000159,5]
[420057170,1775638250449,-2000.0,0.000159,2]
[420057171,1775638250458,-150.0,0.00015904,2]
[420057172,1775638250468,-150.0,0.00015904,2]
[420057173,1775638250478,-500.0,0.00015914,2]
[420057174,1775638250490,-150.0,0.00015916,2]
[420057175,1775638250500,-150.0,0.00015917,2]
[420057176,1775638250509,-150.0,0.00015918,2]
[420057177,1775638250519,-150.0,0.00015924,2]
[420057178,1775638250530,-150.0,0.00015924,2]
[420057179,1775638250539,-150.0,0.00015926,2]
[420057180,1775638250549,-150.0,0.00015928,2]
[420057181,1775638250558,-150.0,0.00015936,2]
[420057182,1775638250568,-150.0,0.00015945,2]
[420057183,1775638250578,-150.0,0.00015952,2]
[420057184,1775638250587,-150.0,0.00015958,2]
[420057185,1775638250597,-150.0,0.00015959,2]
[420057186,1775638250606,-150.0,0.00015963,2]
[420057187,1775638250616,-3434.5893409,0.00015966,2]
[420057188,1775638250625,-245226.2726999,0.00015966,2]
[420057189,1775638250634,-1000.0,0.00015968,2]
[420057190,1775638250644,-150.0,0.00015968,2]
[420057191,1775638250654,-500.0,0.00015969,2]
[420057192,1775638250664,-150.0,0.00015972,2]
[420057193,1775638250673,-308.60154884,0.00015973,2]
[420057194,1775638250682,-500.0,0.00015973,2]
[420057195,1775638250691,-500.0,0.00015973,2]
[420057196,1775638250701,-501.53334874,0.00015973,2]
[420057197,1775638250710,-500.0,0.00015973,2]
[420057198,1775638250719,-500.0,0.00015973,2]
[420057199,1775638250729,-500.0,0.00015973,2]
[420057200,1775638250738,-538.78941312,0.00015973,2]
[420057201,1775638250747,-500.0,0.00015973,2]
[420057202,1775638250757,-500.0,0.00015973,2]
[420057203,1775638250767,-500.0,0.00015973,2]
[420057204,1775638250776,-500.0,0.00015973,2]
[420057205,1775638250786,-500.0,0.00015973,2]
[420057206,1775638250796,-500.0,0.00015973,2]
[420057207,1775638250806,-500.0,0.00015973,2]
[420057208,1775638250815,-501.22826804,0.00015973,2]
[420057209,1775638250824,-500.0,0.00015973,2]
[420057210,1775638250833,-500.0,0.00015973,2]
[420057211,1775638250842,-500.0,0.00015973,2]
[420057212,1775638250852,-500.0,0.00015973,2]
[420057213,1775638250861,-361.43877969,0.00015973,2]
[420057214,1775638250870,-500.0,0.00015973,2]
[420057215,1775638250880,-500.0,0.00015973,2]
[420057216,1775638250890,-165.08001948,0.00015973,2]
[420057217,1775638250899,-500.0,0.00015973,2]
[420057218,1775638250908,-500.0,0.00015973,2]
[420057219,1775638250918,-500.0,0.00015973,2]
[420057220,1775638250927,-502.08343248,0.00015973,2]
[420057221,1775638250937,-500.0,0.00015973,2]
[420057222,1775638250946,-500.0,0.00015973,2]
[420057223,1775638250956,-500.0,0.00015973,2]
[420057224,1775638250965,-500.0,0.00015973,2]
[420057225,1775638250975,-500.0,0.00015973,2]
[420057226,1775638250984,-500.0,0.00015973,2]
[420057227,1775638250993,-500.0,0.00015973,2]
[420057228,1775638251002,-500.0,0.00015973,2]
[420057229,1775638251011,-500.18173431,0.00015973,2]
[420057230,1775638251021,-500.0,0.00015973,2]
[420057231,1775638251030,-500.0,0.00015973,2]
[420057232,1775638251039,-500.0,0.00015973,2]
[420057233,1775638251048,-502.38567456,0.00015973,2]
[420057234,1775638251058,-474.64837932,0.00015973,2]
[420057235,1775638251067,-500.0,0.00015973,2]
[420057236,1775638251077,-288.28066678,0.00015973,2]
[420057237,1775638251087,-500.0,0.00015973,2]
[420057238,1775638251096,-244.23047354,0.00015973,2]
[420057239,1775638251105,-164.42313659,0.00015973,2]
[420057240,1775638251114,-500.32940014,0.00015973,2]
[420057241,1775638251123,-500.0,0.00015973,2]
[420057242,1775638251137,-163.86569709,0.00015973,2]
[420057243,1775638251146,-350.0,0.00015973,2]
[420057244,1775638251155,-350.0,0.00015975,2]
[420057245,1775638251164,-150.0,0.00015976,2]
[420057246,1775638251174,-1000.0,0.00015989,2]
[420057247,1775638251183,-151.0,0.00015997,2]
[420057248,1775638251193,-151.0,0.00015997,2]
[420057249,1775638251202,-151.0,0.00015997,2]
[420057250,1775638251211,-151.0,0.00015997,2]
[420057251,1775638251221,-151.0,0.00015997,2]
[420057252,1775638251230,-151.0,0.00015997,2]
[420057253,1775638251240,-189122.19323154,0.00015998,2]
[420057254,1775638251250,-666.0,0.00015999,2]
[420057255,1775638251260,-666.0,0.00015999,2]
[420057256,1775638251270,-240.76039255,0.00016,2]
[420057257,1775638251279,-254.97243642,0.00016,2]
[420057258,1775638251288,-153.03603175,0.00016,2]
[420057259,1775638251298,-257.21753865,0.00016,2]
[420057260,1775638251308,-246.14760097,0.00016,2]
[420057261,1775638251318,-265.82430715,0.00016,2]
[420057262,1775638251328,-154.96470644,0.00016,2]
[420057263,1775638251337,-299.8368581,0.00016,2]
[420057264,1775638251346,-235.51154759,0.00016,2]
[420057265,1775638251356,-175.09773323,0.00016,2]
[420057266,1775638251365,-253.01547596,0.00016,2]
[420057267,1775638251375,-260.08916634,0.00016,2]
[420057268,1775638251384,-4040798.19973022,0.00016,2]
[420057269,1775638252515,-2542.91899349,0.00016,2]
[420057270,1775638252527,-1187.75083997,0.00016,2]
[420057271,1775638252539,-672.88698176,0.00016,2]
[420057272,1775638252550,-268.89332824,0.00016,2]
[420057273,1775638252561,-2420.9574153,0.00016,2]
[420057274,1775638252681,-252.55931815,0.00011707,2]
[420057275,1775638252693,-158.56068185,0.00011707,2]
[420057276,1775638252703,-715.89742388,0.000158,2]
[420057277,1775638252711,-3663.09487594,0.00016,2]
[420057278,1775638252723,-5057.31371581,0.00016,2]
[420057279,1775638252740,-34454.0,0.00016,2]
[420057280,1775638252884,-307.59217209,0.00010071,2]
[420057281,1775638252895,-192.40782791,0.00010071,2]
[420057282,1775638253856,-307.70743622,0.00010071,2]
[420057283,1775638253866,-500.0,0.00010071,2]
[420057284,1775638253876,-500.0,0.00010071,2]
[420057285,1775638253885,-500.0,0.00010071,2]
[420057286,1775638253895,-500.0,0.00010071,2]
[420057287,1775638253904,-203.54256378,0.00010071,2]
[420057288,1775638253915,-296.45743622,0.00010071,2]
[420057289,1775638253925,-141.54256428,0.00010071,2]
[420057290,1775638254165,-358.45743572,0.00010071,2]
[420057291,1775638254175,-500.0,0.00010071,2]
[420057292,1775638254185,-500.0,0.00010071,2]
[420057293,1775638254194,-500.0,0.00010071,2]
[420057294,1775638254204,-500.0,0.00010071,2]
[420057295,1775638254213,-500.0,0.00010071,2]
[420057296,1775638254222,-500.0,0.00010071,2]
[420057297,1775638254233,-500.0,0.00010071,2]
[420057298,1775638254242,-500.0,0.00010071,2]
[420057299,1775638254252,-500.0,0.00010071,2]
[420057300,1775638254261,-500.0,0.00010071,2]
[420057301,1775638254270,-500.0,0.00010071,2]
[420057302,1775638254279,-500.0,0.00010071,2]
[420057303,1775638254289,-500.0,0.00010071,2]
[420057304,1775638254299,-500.0,0.00010071,2]
[420057305,1775638254308,-500.0,0.00010071,2]
[420057306,1775638254317,-500.0,0.00010071,2]
[420057307,1775638254327,-500.0,0.00010071,2]
[420057308,1775638254337,-500.0,0.00010071,2]
[420057309,1775638254347,-500.0,0.00010071,2]
[420057310,1775638254358,-500.0,0.00010071,2]
[420057311,1775638254368,-500.0,0.00010071,2]
[420057312,1775638254378,-500.0,0.00010071,2]
[420057313,1775638254388,-500.0,0.00010071,2]
[420057314,1775638254397,-500.0,0.00010071,2]
[420057315,1775638254406,-500.0,0.00010071,2]
[420057316,1775638254416,-500.0,0.00010071,2]
[420057317,1775638254426,-500.0,0.00010071,2]
[420057318,1775638254436,-500.0,0.00010071,2]
[420057319,1775638254445,-500.0,0.00010071,2]
[420057320,1775638254454,-500.0,0.00010071,2]
[420057321,1775638254464,-500.0,0.00010071,2]
[420057322,1775638254474,-500.0,0.00010071,2]
[420057323,1775638254483,-299.82287027,0.00010071,2]
[420057324,1775638254492,-500.0,0.00010071,2]
[420057325,1775638254502,-500.0,0.00010071,2]
[420057326,1775638254511,-500.0,0.00010071,2]
[420057327,1775638254521,-500.0,0.00010071,2]
[420057328,1775638254530,-500.0,0.00010071,2]
[420057329,1775638254539,-500.0,0.00010071,2]
[420057330,1775638254549,-500.0,0.00010071,2]
[420057331,1775638254559,-500.0,0.00010071,2]
[420057332,1775638254569,-500.0,0.00010071,2]
[420057333,1775638254578,-500.0,0.00010071,2]
[420057334,1775638254588,-500.0,0.00010071,2]
[420057335,1775638254597,-1000.0,0.00013699,2]
[420057336,1775638254607,-411.12,0.00013925,2]
[420057337,1775638254616,-411.12,0.00014409,2]
[420057338,1775638254626,-228.4,0.00014919,2]
[420057339,1775638254636,-228.4,0.00014946,2]
[420057340,1775638254646,-163494.19930401,0.00016,2]
[420057341,1775638255591,-390.72268297,0.00016,2]
[420057342,1775638255604,-610.45389952,0.00016,2]
[420057343,1775638255979,-1985.03709536,0.000135,2]
[420057344,1775638255991,-1813.07258608,0.000135,2]
[420057345,1775638256001,-98.09686199,0.00016,2]
[420057346,1775638256012,-4541.51549796,0.00016,2]
[420057347,1775638256113,-5908.47406092,0.00016,2]
[420057348,1775638256472,-595.5212453,0.00016,2]
[420057349,1775638256484,-3263.97470844,0.00016,2]
[420057350,1775638256572,-1075.09122512,0.00014607,2]
[420057351,1775638256582,-125324.22385481,0.00016,2]
[420057352,1775638256661,-680.9205656,0.00016,2]
[420057353,1775638392259,500.0,9.511e-05,2]
[420057354,1775638412585,1285.699,0.000161,120]
[420057355,1775638418790,-151.0,9.997e-05,2]
[420057356,1775638418816,-294.0,9.997e-05,2]
[420057357,1775638418842,-300.0,9.999e-05,2]
[420057358,1775638418868,-199255.0,0.0001,2]
[420057360,1775638532524,1600.0,9.931e-05,2]
[420057362,1775638585697,-1000.0,9.972e-05,2]
[420057363,1775638587327,-200.0,9.972e-05,2]
[420057364,1775638587351,-300.0,9.972e-05,2]
[420057365,1775638587374,-160.59720398,9.973e-05,2]
[420057366,1775638587396,-339.40279602,9.997e-05,2]
[420057367,1775638587651,-875.14837067,9.997e-05,2]
[420057368,1775638587675,-124.85162933,9.998e-05,2]
[420057369,1775638588084,-125.14837067,9.998e-05,2]
[420057370,1775638588108,-500.0,9.999e-05,2]
[420057371,1775638588132,-150.0,9.999e-05,2]
[420057372,1775638588156,-224.85162933,9.999e-05,2]
[420057373,1775638588568,-44.30837067,9.999e-05,2]
[420057374,1775638588593,-551.55661514,9.999e-05,2]
[420057375,1775638588623,-404.13501419,9.999e-05,2]
[420057376,1775638588917,-95.86498581,9.999e-05,2]
[420057377,1775638588947,-500.0,9.999e-05,2]
[420057378,1775638588977,-404.13501419,9.999e-05,2]
[420057379,1775638589377,-95.86498581,9.999e-05,2]
[420057380,1775638589405,-500.0,9.999e-05,2]
[420057381,1775638589433,-404.13501419,9.999e-05,2]
[420057382,1775638589775,-95.86498581,9.999e-05,2]
[420057383,1775638589803,-500.0,9.999e-05,2]
[420057384,1775638589833,-404.13501419,9.999e-05,2]
[420057385,1775638590246,-95.86498581,9.999e-05,2]
[420057386,1775638590274,-500.0,9.999e-05,2]
[420057387,1775638590301,-404.13501419,9.999e-05,2]
[420057388,1775638590750,-95.86498581,9.999e-05,2]
[420057389,1775638590778,-500.0,9.999e-05,2]
[420057390,1775638590806,-404.13501419,9.999e-05,2]
[420057391,1775638591245,-95.86498581,9.999e-05,2]
[420057392,1775638591276,-500.0,9.999e-05,2]
[420057393,1775638591303,-404.13501419,9.999e-05,2]
[420057394,1775638591707,-95.86498581,9.999e-05,2]
[420057395,1775638591737,-500.0,9.999e-05,2]
[420057396,1775638591783,-404.13501419,9.999e-05,2]
[420057397,1775638592153,-95.86498581,9.999e-05,2]
[420057398,1775638592183,-500.0,9.999e-05,2]
[420057399,1775638592212,-404.13501419,9.999e-05,2]
[420057400,1775638593013,-95.86498581,9.999e-05,2]
[420057401,1775638593046,-500.0,9.999e-05,2]
[420057402,1775638593080,-404.13501419,9.999e-05,2]
[420057403,1775638593208,-95.86498581,9.999e-05,2]
[420057404,1775638593239,-500.0,9.999e-05,2]
[420057405,1775638593269,-404.13501419,9.999e-05,2]
[420057406,1775638593365,-95.86498581,9.999e-05,2]
[420057407,1775638593397,-500.0,9.999e-05,2]
[420057408,1775638593431,-404.13501419,9.999e-05,2]
[420057409,1775638593689,-95.86498581,9.999e-05,2]
[420057410,1775638593720,-500.0,9.999e-05,2]
[420057411,1775638593754,-404.13501419,9.999e-05,2]
[420057412,1775638593857,-95.86498581,9.999e-05,2]
[420057413,1775638593889,-500.0,9.999e-05,2]
[420057414,1775638593919,-404.13501419,9.999e-05,2]
[420057415,1775638595155,-95.86498581,9.999e-05,2]
[420057416,1775638595183,-500.0,9.999e-05,2]
[420057417,1775638595212,-404.13501419,9.999e-05,2]
[420057418,1775638595705,-95.86498581,9.999e-05,2]
[420057419,1775638595735,-500.0,9.999e-05,2]
[420057420,1775638595764,-404.13501419,9.999e-05,2]
[420057421,1775638595912,-95.86498581,9.999e-05,2]